Cogmind - Beta 9.2 @@@ ROGUE MODE // 2019.11.18 @ 21:14:08 Player: Fleshy Vegetable Bird Result: Destroyed by Y-54 Guardian with Flak Gun Performance ------------- Evolutions (3) 1500 Regions Visited (10) 2000 Robots Destroyed (167) 835 Value Destroyed (5039) 5039 Prototype IDs (5) 100 Alien Tech Used (0) 0 Bonus (2925) 2925 TOTAL SCORE: 12399 Bonus ------- High Alert Combat Kills 1304 Follower Combat Kills 269 Entered Garrisons 600 Used RIF Installer 1000 Friendly Fire -248 Cogmind --------- Core Integrity 0/700 Matter 134/300 Energy 290/290 System Corruption 7% Temperature Cool (0) Movement Treading (240) Ox4 Location -7/Garrison Parts ------- > --- POWER (1) -------- Improved Deuterium Engine > --- PROPULSION (3) --- Light Treads > --- UTILITY (7) ------ Large Storage Unit Large Storage Unit High-capacity Storage Unit Enhanced Optical Array Improved Light Armor Plating Reactive Plating Relay Coupler [Grunt] (25) > --- WEAPON (2) ------- Gauss Rifle Power Maul > --- INVENTORY (24) --- Improved Deuterium Engine Advanced Terrain Scan Processor Kinecellerator Improved Light Armor Plating Improved Shield Generator Remote Shield Hacking Suite Relay Coupler [NC] (33) Relay Coupler [Swarmer] (37) Relay Coupler [Grunt] (31) Relay Coupler [Grunt] (26) Relay Coupler [Grunt] (23) Relay Coupler [Sentry] (22) Relay Coupler [Hunter] (17) Relay Coupler [Hunter] (18) Relay Coupler [Hunter] (13) Gatling Laser Plasma Cannon Plasma Cannon Improved Datajack Peak State ------------ > --- POWER ------------ Improved Deuterium Engine > --- PROPULSION ------- Light Treads Wheel Wheel > --- UTILITY ---------- Large Storage Unit High-capacity Storage Unit Enhanced Optical Array Improved Light Armor Plating Hacking Suite System Shield Relay Coupler [Grunt] > --- WEAPON ----------- Gatling Laser Plasma Cannon > --- INVENTORY -------- Improved Deuterium Engine Improved Deuterium Engine Light Treads Light Treads Large Storage Unit Advanced Terrain Scan Processor Reactive Plating Improved Shield Generator Remote Shield Hacking Suite Relay Coupler [Hunter] Relay Coupler [Hunter] Gatling Laser Plasma Cannon Gauss Rifle Mini Grenade Launcher Improved Datajack Power Maul [Rating: 39] Favorites ----------- Power Improved Ion Engine Engine Improved Ion Engine Power Core Light Nuclear Core Propulsion Light Treads Treads Light Treads Wheel Wheel Utility High-capacity Storage Unit Device Improved Terrain Scanner Storage High-capacity Storage Unit Processor Enhanced Optical Array Hackware Hacking Suite Protection Light Armor Plating Weapon Autogun Energy Gun Cooled Pulse Rifle Energy Cannon Plasma Cannon Ballistic Gun Autogun Ballistic Cannon Assault Cannon Launcher Mini Grenade Launcher Impact Weapon Power Maul Special Melee Weapon Improved Datajack Build | -11 -10 -10 -9 -9 -9 -9 -7 -7 -7 -7 ------- Run | Scr Mat Min Mat Sto Gar Rec Fac Gar Fac Gar Slots Evolved 6 | . . . 2 . . . 4 . . . Power . | . . . . . . . . . . . Propulsion 1 | . . . . . . . 1 . . . Utility 5 | . . . 2 . . . 3 . . . Weapon . | . . . . . . . . . . . Parts Attached 124 | 6 4 6 15 7 14 1 39 20 . 12 Power 11 | 1 . 1 3 . 1 . 2 2 . 1 Engine 9 | 1 . 1 3 . 1 . 1 1 . 1 Core 2 | . . . . . . . 1 1 . . Reactor . | . . . . . . . . . . . Propulsion 29 | 2 2 3 3 2 1 . 9 5 . 2 Treads 17 | . . . 3 2 1 . 6 3 . 2 Leg . | . . . . . . . . . . . Wheel 12 | 2 2 3 . . . . 3 2 . . Hover . | . . . . . . . . . . . Flight . | . . . . . . . . . . . Utility 30 | 2 1 . 6 2 1 1 8 5 . 4 Device 4 | 1 . . 1 . . . 1 1 . . Storage 5 | 1 1 . 2 . . . . 1 . . Processor 3 | . . . . . 1 1 1 . . . Hackware 7 | . . . . 1 . . 4 1 . 1 Protection 11 | . . . 3 1 . . 2 2 . 3 Artifact . | . . . . . . . . . . . Weapon 54 | 1 1 2 3 3 11 . 20 8 . 5 Energy Gun 11 | 1 . . . . 4 . 5 1 . . Energy Cannon 5 | . . . . . . . 4 1 . . Ballistic Gun 18 | . . 2 3 1 5 . 3 3 . 1 Ballistic Cannon 1 | . . . . . . . 1 . . . Launcher 10 | . 1 . . 1 2 . 2 3 . 1 Special Weapon . | . . . . . . . . . . . Impact Weapon 4 | . . . . 1 . . 2 . . 1 Slashing Weapon . | . . . . . . . . . . . Piercing Weapon . | . . . . . . . . . . . Special Melee Weapon 5 | . . . . . . . 3 . . 2 Unidentified Prototypes 2 | . . . 1 . . . 1 . . . Parts Lost 44 | . 1 3 3 3 5 . 16 8 . 5 Power 6 | . . 1 . . . . 2 2 . 1 Propulsion 18 | . . 1 2 1 1 . 7 4 . 2 Utility 7 | . . . . 1 1 . 4 1 . . Weapon 13 | . 1 1 1 1 3 . 3 1 . 2 Highest Loss Streak 7 | . 1 3 1 2 3 . 7 5 . 3 Average Slot Usage (%) 91 | . 91 86 92 96 93 98 84 98 100 96 Engine 8 | . 14 14 11 11 11 11 4 5 7 6 Treads 12 | . . . 11 19 21 22 13 8 23 22 Wheel 7 | . 28 25 8 . . . . 13 . . Device 3 | . 4 . 9 . . . 2 4 . . Storage 20 | . 23 28 22 22 22 22 15 16 23 23 Processor 4 | . . . . . 6 9 8 7 7 7 Hackware 10 | . . . . 10 11 11 17 18 23 13 Protection 4 | . . . 7 10 . . 3 5 . 8 Energy Gun 3 | . 14 10 . . 6 . 4 3 7 3 Energy Cannon 1 | . . . . . . . 4 1 7 1 Ballistic Gun 9 | . . 7 21 7 12 22 3 5 . 2 Launcher 1 | . 6 . . 7 2 . . 2 . . Naked Turns . | . . . . . . . . . . . Heaviest Build 95 | 10 44 41 66 66 62 61 75 85 85 95 Greatest Support 66 | 32 32 20 42 46 46 46 66 60 60 60 Greatest Overweight (x) 18 | . 2 4 5 3 1 1 18 3 1 1 Average Overweight (x) 1 | . 1 2 1 1 1 1 1 2 1 1 Largest Inventory Capacity 24 | 6 14 14 18 18 18 18 18 24 24 24 Average Capacity 17 | 5 11 14 15 18 18 18 18 19 24 24 Most Carried 24 | 6 7 14 18 18 18 18 18 22 23 24 Average Carried 15 | 3 6 11 14 17 16 17 16 17 22 22 Final Capacity 24 | 6 14 14 18 18 18 18 18 24 24 24 Final Carried 23 | 5 7 10 18 18 18 18 17 22 23 20 Class Distribution -------------------- 44% | Scavenger-Mutant 34% | Mutant 13% | Hacker-Mutant 7% | Bothacker-Mutant Dominant Class ---------------- Mutant | -10/Materials Mutant | -10/Mines Scavenger-Mutant | -9/Materials Mutant | -9/Storage Mutant | -9/Garrison Scavenger-Mutant | -9/Recycling Hacker-Mutant | -7/Factory Scavenger-Mutant | -7/Garrison Bothacker-Mutant | -7/Factory Bothacker-Mutant | -7/Garrison Resources | -11 -10 -10 -9 -9 -9 -9 -7 -7 -7 -7 ----------- Run | Scr Mat Min Mat Sto Gar Rec Fac Gar Fac Gar Matter Collected 3126 | 260 60 84 855 136 277 70 824 471 27 62 Remotely . | . . . . . . . . . . . Salvage Created 5152 | 122 176 257 1241 424 405 242 1499 618 27 141 Parts 313 | 11 10 19 80 30 24 19 69 38 . 13 Haulers Intercepted 5 | . . . 3 . . . 2 . . . Recyclers Shooed 10 | . . 1 1 1 . 3 4 . . . Parts Field Recycled . | . . . . . . . . . . . Retrieved Matter . | . . . . . . . . . . . Parts Self-Destructed . | . . . . . . . . . . . Prevented . | . . . . . . . . . . . Kills | -11 -10 -10 -9 -9 -9 -9 -7 -7 -7 -7 ------- Run | Scr Mat Min Mat Sto Gar Rec Fac Gar Fac Gar Combat Hostiles Destroyed 118 | . 3 8 22 12 13 5 20 23 1 11 Guns 66 | . 2 8 22 1 10 5 10 6 . 2 Cannons 10 | . . . . . . . 6 3 1 . AOE 40 | . 1 . . 10 3 . 3 14 . 9 Classes Destroyed 16 | 2 3 1 5 2 . 1 2 . . . Worker 8 | . . . 1 2 . . 5 . . . Builder 8 | . . . 2 3 . . 3 . . . Tunneler 4 | 3 . 1 . . . . . . . . Hauler 5 | . . . 3 . . . 2 . . . Recycler 12 | 1 . 1 2 1 . 2 5 . . . Operator 6 | . 2 . 2 1 . . 1 . . . Drone 5 | . . . . . . 5 . . . . Watcher 5 | . 1 . 1 1 . . 2 . . . Swarmer 45 | . . 6 8 4 4 . . 15 1 7 Grunt 35 | . 3 1 7 5 5 . 11 1 . 2 Brawler 3 | . . . 1 . 1 . . . . 1 Duelist 2 | . . . . 1 . . 1 . . . Protector 2 | . . . . 2 . . . . . . Sentry 18 | . . . 6 . 3 . 3 6 . . Hunter 4 | . . . . . . . 2 1 . 1 Programmer 3 | . . . . . . . 3 . . . Thug 1 | . . . . 1 . . . . . . Best Kill Streak 11 | 4 3 3 9 8 10 1 11 5 1 11 Combat Bots Only 11 | . 2 3 6 5 10 1 4 5 1 11 Max Kills in Single Turn 4 | 1 1 1 1 4 2 1 3 3 1 4 Gunslinging . | . . . . . . . . . . . Exploded 4 | . 1 . . 3 1 . 2 3 . 4 Melee . | . . . . . . . . . . . Uniques/NPCs Destroyed 1 | . . 1 . . . . . . . . YI-UF0 (-10/Mines) Combat | -11 -10 -10 -9 -9 -9 -9 -7 -7 -7 -7 -------- Run | Scr Mat Min Mat Sto Gar Rec Fac Gar Fac Gar Damage Taken 7096 | 4 179 354 781 527 645 . 2615 963 222 806 Core 1166 | 2 49 116 130 55 110 . 489 101 32 82 Absorbed by Shields . | . . . . . . . . . . . Core Remaining (%) 52 | 99 . 33 . . . 26 . . . . Volleys Fired 402 | 6 24 36 93 24 29 33 78 50 7 22 Largest 2 | 1 2 2 2 2 2 2 2 2 1 2 Hottest 160 | 40 70 40 46 53 126 46 120 160 80 160 Shots Fired 648 | 6 26 48 184 28 46 65 144 70 7 24 Gun 536 | 6 24 48 184 15 42 65 91 42 3 16 Cannon 70 | . . . . . . . 48 17 4 1 Launcher 42 | . 2 . . 13 4 . 5 11 . 7 Special . | . . . . . . . . . . . Kinetic 421 | . . 24 184 15 17 65 65 41 . 10 Thermal 119 | . . . . . 25 . 62 18 7 7 Explosive 42 | . 2 . . 13 4 . 5 11 . 7 Electromagnetic 66 | 6 24 24 . . . . 12 . . . Robot Hit Streak 26 | 6 7 6 12 9 10 3 26 15 10 11 Robot Miss Streak 6 | . 3 6 4 3 2 6 3 3 2 1 Penetration Max 1 | . . . . . . . 1 1 . . Secondary Targets 3 | . . . . . 3 . . . . . Max Gunslinging Chain 1 | . . . . . 1 . . . . . Shots Hit Robots 394 | 6 16 22 112 20 30 21 113 34 5 15 Core Hits 263 | 5 9 12 46 37 18 9 58 42 1 26 Critical Hits 4 | . . . 2 . . . 1 1 . . Critical Kills 2 | . . . 1 . . . . 1 . . Critical Parts Destroyed 2 | . . . 1 . . . 1 . . . Melee Attacks 52 | . . . . 14 . . 23 . . 15 Impact 45 | . . . . 14 . . 18 . . 13 Slashing . | . . . . . . . . . . . Piercing . | . . . . . . . . . . . Sneak Attacks 5 | . . . . . . . 5 . . . Combat Hostiles . | . . . . . . . . . . . Follow-up Attacks . | . . . . . . . . . . . Damage Inflicted 12654 | 118 445 243 1675 1852 699 274 4104 1901 110 1233 Guns 5935 | 80 272 243 1675 184 528 273 1853 490 58 279 Cannons 1402 | . . . . . . . 1123 227 52 . Explosions 4595 | 38 173 . . 1570 171 . 505 1184 . 954 Melee 721 | . . . . 98 . . 623 . . . Ramming 1 | . . . . . . 1 . . . . Kinetic 4446 | . . 80 1675 184 158 273 1393 493 . 190 Thermal 2167 | 38 38 . . . 370 . 1298 224 110 89 Explosive 4519 | . 135 . . 1570 171 . 505 1184 . 954 Electromagnetic 800 | 80 272 163 . . . . 285 . . . Impact 721 | . . . . 98 . . 623 . . . Slashing . | . . . . . . . . . . . Piercing . | . . . . . . . . . . . Highest Corruption 7 | . . . 1 1 1 1 3 3 3 7 Average Corruption 1 | . . . 1 1 1 1 1 3 3 4 Corruption Purged . | . . . . . . . . . . . Effects 53 | . . . 4 2 3 6 4 18 3 13 Message Errors 15 | . . . 2 1 2 1 1 3 1 4 Matter Fused 11 | . . . . . . . . 8 2 1 Heat Flow Errors 5 | . . . . . . . 1 2 . 2 Energy Discharges 8 | . . . 2 . 1 2 . 2 . 1 Data Loss (minor) 5 | . . . . . . 1 1 1 . 2 Targeting Errors 5 | . . . . 1 . 1 . 1 . 2 Weapon Failures 4 | . . . . . . 1 1 1 . 1 Overload Shots 14 | . . . . . . . 14 . . . Effects 1 | . . . . . . . 1 . . . Short Circuit 1 | . . . . . . . 1 . . . Overflow Damage 455 | . 2 . . 88 3 . 338 8 2 14 Projectiles 29 | . . . . . . . 27 . 2 . Explosions 105 | . 2 . . 52 3 . 26 8 . 14 Melee 321 | . . . . 36 . . 285 . . . Knockbacks 23 | . . . . 1 . 1 20 1 . . Impact 3 | . . . . 1 . 1 1 . . . Kinetic 15 | . . . . . . . 14 1 . . Secondary 5 | . . . . . . . 5 . . . Self-Inflicted Damage 313 | 5 39 . . 105 9 . . 83 . 72 Shots 13 | 1 1 . . 3 1 . . 3 . 4 Rammed 1 | . . . . . . 1 . . . . Targets Rammed 1 | . . . . . . 1 . . . . Kicked . | . . . . . . . . . . . Crushed . | . . . . . . . . . . . Highest Temperature 321 | 12 24 18 28 1 321 4 171 270 130 272 Average Temperature 41 | 12 12 12 8 1 94 1 43 90 65 72 Received Heat Transfer 1782 | . 78 33 231 165 210 . 735 144 . 186 Siege Activations . | . . . . . . . . . . . Robots Corrupted . | . . . . . . . . . . . Combat Hostiles . | . . . . . . . . . . . Parts Fried 4 | . 2 . . . . . 2 . . . Impact Corruptions 11 | . . . . 1 . . 10 . . . Robots Melted 1 | . . . . . . . 1 . . . Combat Hostiles 1 | . . . . . . . 1 . . . Parts Melted 5 | . . . . . . . 4 1 . . Heat Transferred 3985 | 50 50 . . . 814 . 2171 475 225 200 Parts Sabotaged . | . . . . . . . . . . . Parts Stolen . | . . . . . . . . . . . Parts Stripped . | . . . . . . . . . . . Power Chain Reactions 2 | 1 1 . . . . . . . . . Missiles Intercepted . | . . . . . . . . . . . Alert | -11 -10 -10 -9 -9 -9 -9 -7 -7 -7 -7 ------- Run | Scr Mat Min Mat Sto Gar Rec Fac Gar Fac Gar Peak Influence 1294 | 20 132 115 526 684 748 442 1077 1294 699 837 Average Influence 564 | 8 79 60 263 409 625 319 899 1026 684 660 Maximum Alert Level 4 | . . . 2 2 3 2 3 4 2 3 Low Security (%) 26 | 100 100 100 46 19 . 18 . . . . Level 1 7 | . . . 9 19 . 53 . . . . Level 2 23 | . . . 43 61 65 27 . 5 100 58 Level 3 37 | . . . . . 34 . 100 55 . 41 Level 4 5 | . . . . . . . . 38 . . Level 5 . | . . . . . . . . . . . High Security . | . . . . . . . . . . . Max Security . | . . . . . . . . . . . Squads Dispatched 16 | . 2 1 3 3 . . 7 . . . Investigation 2 | . . 1 . 1 . . . . . . Extermination 3 | . . . . . . . 3 . . . Reinforcement 6 | . 2 . 2 . . . 2 . . . Assault 5 | . . . 1 2 . . 2 . . . Garrison . | . . . . . . . . . . . Intercept . | . . . . . . . . . . . Construction Impeded 1 | . . . . . . . 1 . . . Haulers Reinforced . | . . . . . . . . . . . Stealth | -11 -10 -10 -9 -9 -9 -9 -7 -7 -7 -7 --------- Run | Scr Mat Min Mat Sto Gar Rec Fac Gar Fac Gar Distress Signals 10 | . 1 . 4 2 . . 3 . . . Communications Jammed . | . . . . . . . . . . . Distress Signals . | . . . . . . . . . . . Times Spotted 223 | . 15 11 36 29 13 24 45 26 3 21 Peak Tracking Total 13 | . 3 3 6 6 6 4 6 6 3 13 Tactical Retreats 25 | . 4 1 5 4 1 . 1 5 1 3 Traps | -11 -10 -10 -9 -9 -9 -9 -7 -7 -7 -7 ------- Run | Scr Mat Min Mat Sto Gar Rec Fac Gar Fac Gar Traps Triggered 7 | . . . . 1 1 . 2 1 . 2 Indirectly . | . . . . . . . . . . . Trap Hack Attempts . | . . . . . . . . . . . Triggered . | . . . . . . . . . . . Disarmed . | . . . . . . . . . . . Reprogrammed . | . . . . . . . . . . . Reused . | . . . . . . . . . . . Traps Extracted . | . . . . . . . . . . . Installed . | . . . . . . . . . . . Triggered . | . . . . . . . . . . . Machines | -11 -10 -10 -9 -9 -9 -9 -7 -7 -7 -7 ---------- Run | Scr Mat Min Mat Sto Gar Rec Fac Gar Fac Gar Machines Disabled 10 | . . . 2 4 1 . . 2 . 1 Max in Single Turn 1 | . . . 1 1 1 . . 1 . 1 Garrison Relay 4 | . . . . . 1 . . 2 . 1 Machines Sabotaged . | . . . . . . . . . . . Garrisons Compromised . | . . . . . . . . . . . Overloaded Fab Kills . | . . . . . . . . . . . Fab Network Shutdowns . | . . . . . . . . . . . Hacking | -11 -10 -10 -9 -9 -9 -9 -7 -7 -7 -7 --------- Run | Scr Mat Min Mat Sto Gar Rec Fac Gar Fac Gar Machines Accessed 26 | . 2 1 4 8 . 1 9 . 1 . Terminals 18 | . 2 . 4 6 . 1 5 . . . Fabricators 1 | . . . . . . . 1 . . . Repair Stations 2 | . . . . 1 . . 1 . . . Recycling Units . | . . . . . . . . . . . Scanalyzers 1 | . . . . . . . 1 . . . Garrison Access 3 | . . . . 1 . . 1 . 1 . Total Hacks 75 | . 12 1 12 18 . 5 26 . 1 . Successful 38 | . 4 1 6 10 . 2 14 . 1 . Failed 37 | . 8 . 6 8 . 3 12 . . . Catastrophic 3 | . . . . 1 . . 2 . . . Database Lockouts . | . . . . . . . . . . . Manual 63 | . 13 . 12 13 . 5 20 . . . Terminals 64 | . 12 . 12 15 . 5 20 . . . Fabricators 1 | . . . . . . . 1 . . . Repair Stations 4 | . . . . 2 . . 2 . . . Recycling Units . | . . . . . . . . . . . Scanalyzers 2 | . . . . . . . 2 . . . Garrison Access 3 | . . . . 1 . . 1 . 1 . Terminal Hacks 12 | . . 1 1 3 . 2 5 . . . Prototype ID Bank 1 | . . . . . . . 1 . . . Open Door 2 | . . 1 . 1 . . . . . . Level Access Points 1 | . . . . . . 1 . . . . Branch Access Points 1 | . . . 1 . . . . . . . Terminal Index 3 | . . . . 1 . . 2 . . . Unreport Threat 2 | . . . . . . 1 1 . . . Recall Investigation 1 | . . . . 1 . . . . . . Recall Assault 1 | . . . . . . . 1 . . . Fabricator Hacks 1 | . . . . . . . 1 . . . Network Status 1 | . . . . . . . 1 . . . Repair Station Hacks 3 | . . . . 1 . . 2 . . . Scan Component 2 | . . . . 1 . . 1 . . . Repair 1 | . . . . . . . 1 . . . Recycling Unit Hacks . | . . . . . . . . . . . Scanalyzer 1 | . . . . . . . 1 . . . Insert Component 1 | . . . . . . . 1 . . . Garrison Access Hacks 3 | . . . . 1 . . 1 . 1 . Unlock Access 3 | . . . . 1 . . 1 . 1 . Unauthorized Hacks 49 | . 10 . 15 12 . . 12 . . . Terminals 18 | . 4 . 5 5 . . 4 . . . Track 7 | . 1 . 2 3 . . 1 . . . Botnet 9 | . 2 . 3 1 . . 3 . . . Disrupt 1 | . . . . 1 . . . . . . Operators 1 | . 1 . . . . . . . . . Fabricators . | . . . . . . . . . . . Repair Stations . | . . . . . . . . . . . Recycling Units . | . . . . . . . . . . . Scanalyzers . | . . . . . . . . . . . Garrison Access . | . . . . . . . . . . . Data Cores Recovered 1 | . . . . . . . 1 . . . Used . | . . . . . . . . . . . Hacking Detections 23 | . 2 . 4 8 . 1 7 . 1 . Full Trace Events . | . . . . . . . . . . . Feedback Events . | . . . . . . . . . . . Feedback Blocked . | . . . . . . . . . . . Robot Schematics Acquired . | . . . . . . . . . . . Robots Built . | . . . . . . . . . . . Matter . | . . . . . . . . . . . Time . | . . . . . . . . . . . Total Robot Build Rating . | . . . . . . . . . . . Part Schematics Acquired . | . . . . . . . . . . . Parts Built . | . . . . . . . . . . . Matter . | . . . . . . . . . . . Time . | . . . . . . . . . . . Total Part Build Rating . | . . . . . . . . . . . Parts Repaired 1 | . . . . . . . 1 . . . Time 70 | . . . . . . . 70 . . . Parts Recycled . | . . . . . . . . . . . Recycled Matter . | . . . . . . . . . . . Retrieved Matter . | . . . . . . . . . . . Retrieved Components . | . . . . . . . . . . . Parts Scanalyzed . | . . . . . . . . . . . Part Schematics Acquired . | . . . . . . . . . . . Parts Damaged . | . . . . . . . . . . . Bothacking | -11 -10 -10 -9 -9 -9 -9 -7 -7 -7 -7 ------------ Run | Scr Mat Min Mat Sto Gar Rec Fac Gar Fac Gar Used RIF Installer 2 | . . . . . 1 . . 1 . . Program Shield 1 | . . . . . . . . 1 . . Robots Hacked 4 | . . . . . . . 2 . . 2 Non-combat 1 | . . . . . . . 1 . . . Combat 3 | . . . . . . . 1 . . 2 Robot Hacks Applied 5 | . . . . . . . 3 . . 2 map_route 1 | . . . . . . . 1 . . . relay_feed 1 | . . . . . . . 1 . . . disable_weapons 1 | . . . . . . . . . . 1 formatsys_high 2 | . . . . . . . 1 . . 1 Relay Couplers Released 17 | . . . . . 3 . . 9 . 5 Machine Destruction 17 | . . . . . 3 . . 9 . 5 Attached 4 | . . . . . . . 2 1 . 1 Robots Rewired . | . . . . . . . . . . . Allies Hacked . | . . . . . . . . . . . Hacks Repelled . | . . . . . . . . . . . Allies | -11 -10 -10 -9 -9 -9 -9 -7 -7 -7 -7 -------- Run | Scr Mat Min Mat Sto Gar Rec Fac Gar Fac Gar Total Allies 4 | . . . . 2 . . 1 . . 1 Largest Group 2 | . . . . 2 . . 1 . . 1 Highest-Rated Group 62 | . . . . 62 . . 30 . . 32 Highest-Rated Ally 32 | . . . . 31 . . 30 . . 32 Total Orders . | . . . . . . . . . . . Ally Attacks 46 | . . . . 28 . . 15 . . 3 Total Damage 1074 | . . . . 503 . . 458 . . 113 Kills 10 | . . . . 6 . . 2 . . 2 Allies Corrupted . | . . . . . . . . . . . Allies Melted . | . . . . . . . . . . . Intel | -11 -10 -10 -9 -9 -9 -9 -7 -7 -7 -7 ------- Run | Scr Mat Min Mat Sto Gar Rec Fac Gar Fac Gar Robot Analysis Total . | . . . . . . . . . . . Derelict Logs Recovered 1 | . . 1 . . . . . . . . Drone Launches . | . . . . . . . . . . . Drone Recoveries . | . . . . . . . . . . . Exploration | -11 -10 -10 -9 -9 -9 -9 -7 -7 -7 -7 ------------- Run | Scr Mat Min Mat Sto Gar Rec Fac Gar Fac Gar Turns Passed 7333 | 112 215 861 1225 396 538 610 1856 1030 113 377 Spaces Moved 3798 | 82 155 729 511 158 217 274 812 666 55 139 Core 12 | 9 . . . . . . 3 . . . Treads 1969 | . . . 276 158 217 274 737 113 55 139 Legs . | . . . . . . . . . . . Wheels 1817 | 73 155 729 235 . . . 72 553 . . Hover . | . . . . . . . . . . . Flight . | . . . . . . . . . . . Fastest Speed 50 | 50 80 100 100 172 180 180 96 96 180 180 Average Speed 144 | 94 96 102 141 180 180 180 180 119 180 180 Slowest Speed 950 | 100 100 120 172 220 180 180 950 220 180 180 Overloaded Moves . | . . . . . . . . . . . Propulsion Burnouts . | . . . . . . . . . . . Robots Hopped . | . . . . . . . . . . . Cave-ins Triggered . | . . . . . . . . . . . Exploration Rate (%) 41 | 5 26 100 44 34 37 74 29 71 3 34 Regions Visited 10 Branch Regions 3 Pre-discovered Areas 1 | . . 1 . . . . . . . . Known Exits Taken 5 | . . . 1 1 . 1 1 . 1 . Unknown Exits Taken 3 | 1 1 1 . . . . . . . . Scrap Searched 2 | . . 2 . . . . . . . . Spaces Dug 16 | . . . . 7 . . 8 . . 1 Terrain Destroyed 202 | . 18 . . 55 6 . 47 54 . 22 Melee 16 | . . . . 7 . . 8 . . 1 Projectile 5 | . . . . . . . 3 2 . . AOE 181 | . 18 . . 48 6 . 36 52 . 21 Actions | -11 -10 -10 -9 -9 -9 -9 -7 -7 -7 -7 --------- Run | Scr Mat Min Mat Sto Gar Rec Fac Gar Fac Gar Total 4977 | 111 195 800 872 213 317 331 1027 831 62 218 Wait 406 | 3 2 17 211 . 49 20 32 58 . 14 Move 3786 | 81 154 728 510 157 215 273 811 664 54 139 Hop . | . . . . . . . . . . . Pick Up 135 | 13 7 10 28 6 7 2 31 23 1 7 Fast Attach . | . . . . . . . . . . . Attach 57 | 6 1 4 5 1 6 1 19 10 . 4 Detach . | . . . . . . . . . . . Swap 67 | . 3 2 10 6 8 . 20 10 . 8 Drop 55 | 2 4 3 15 5 1 1 11 8 . 5 Fire 402 | 6 24 36 93 24 29 33 78 50 7 22 Melee 52 | . . . . 14 . . 23 . . 15 Ram . | . . . . . . . . . . . Kick . | . . . . . . . . . . . Crush 1 | . . . . . . 1 . . . . Escape Stasis 16 | . . . . . 2 . 2 8 . 4 Rewire . | . . . . . . . . . . . Trap . | . . . . . . . . . . . Miscellaneous . | . . . . . . . . . . . Route ------- -11/Scrapyard -10/Materials (discovered 2 exits: *Mat / *Min) -10/Mines (discovered 2 exits: *Mat x2) -9/Materials (discovered 4 exits: [*Mat] / Min / *Sto x2) -9/Storage -9/Garrison -9/Recycling -7/Factory (discovered 3 exits: [*Low x2] / Gar) -7/Garrison (discovered 3 exits: *Fac x3) -7/Factory -7/Garrison History --------- Turn | Location | Event 14 | -11/Scrapyard | Discovered new exit (range 15) 113 | -11/Scrapyard | Entered Materials 153 | -10/Materials | Discovered new exit (range 12) 195 | -10/Materials | Discovered new exit (range 3) 315 | -10/Materials | Build established: Mutant 328 | -10/Materials | Entered Mines 331 | -10/Mines | Met a Derelict shopkeep closing up shop 334 | -10/Mines | Met a Derelict bent on vengeance 393 | -10/Mines | Discovered new exit (range 7) 399 | -10/Mines | Learned location of Storage (-9) 442 | -10/Mines | Discovered new exit (range 14) 552 | -10/Mines | Learned Materials garrison access intel 624 | -10/Mines | Destroyed YI-UF0 956 | -10/Mines | Core integrity fell below 50% 995 | -10/Mines | Lost 3 parts (1p1n1w) 1189 | -10/Mines | Entered Materials 1189 | -9/Materials | Evolved 2 slots: Utility x2 1227 | -9/Materials | Discovered new exit (range 15) 2062 | -9/Materials | Build established: Scavenger-Mutant 2207 | -9/Materials | Discovered new exit (range 15) 2277 | -9/Materials | Identified exit to Mines 2277 | -9/Materials | Identified exit to Storage 2389 | -9/Materials | First assault squad dispatched 2414 | -9/Materials | Entered Storage 2461 | -9/Storage | Met a pair of Derelict thieves 2808 | -9/Storage | Identified exit to Garrison 2810 | -9/Storage | Entered Garrison 2819 | -9/Garrison | Installed Relay Interface Framework 2899 | -9/Garrison | Build established: Mutant 2899 | -9/Garrison | Triggered checkpoint 2937 | -9/Garrison | Core integrity fell below 50% 3036 | -9/Garrison | Destroyed 10 combat bots 3080 | -9/Garrison | Triggered checkpoint 3159 | -9/Garrison | Lost 3 parts (1u2w) 3163 | -9/Garrison | Garrison Relay disabled 3234 | -9/Garrison | Discovered new exit (range 10) 3348 | -9/Garrison | Entered Recycling 3431 | -9/Recycling | Spotter reported a threat 3482 | -9/Recycling | Spotter reported a threat 3482 | -9/Recycling | Spotter reported a threat 3505 | -9/Recycling | Spotter reported a threat 3550 | -9/Recycling | Spotter reported a threat 3552 | -9/Recycling | Spotter reported a threat 3558 | -9/Recycling | Spotter reported a threat 3564 | -9/Recycling | Spotter reported a threat 3587 | -9/Recycling | Spotter reported a threat 3611 | -9/Recycling | Spotter reported a threat 3622 | -9/Recycling | Spotter reported a threat 3636 | -9/Recycling | Spotter reported a threat 3675 | -9/Recycling | Spotter reported a threat 3683 | -9/Recycling | Spotter reported a threat 3689 | -9/Recycling | Spotter reported a threat 3721 | -9/Recycling | Build established: Scavenger-Mutant 3764 | -9/Recycling | Spotter reported a threat 3769 | -9/Recycling | Spotter reported a threat 3782 | -9/Recycling | Spotter reported a threat 3791 | -9/Recycling | Spotter reported a threat 3822 | -9/Recycling | Spotter reported a threat 3843 | -9/Recycling | Spotter reported a threat 3846 | -9/Recycling | Identified exit to Factory 3875 | -9/Recycling | Spotter reported a threat 3896 | -9/Recycling | Spotter reported a threat 3949 | -9/Recycling | Spotter reported a threat 3958 | -9/Recycling | Entered Factory 3958 | -7/Factory | Evolved 4 slots: Propulsion x1, Utility x3 4179 | -7/Factory | Discovered new exit (range 11) 4341 | -7/Factory | Lost 3 parts (3n) 4758 | -7/Factory | First assault squad dispatched 4863 | -7/Factory | P-60 Hacker assimilated allied Fighter 4a 5059 | -7/Factory | Discovered new exit (range 7) 5242 | -7/Factory | Repaired Remote Shield 5439 | -7/Factory | Build established: Hacker-Mutant 5611 | -7/Factory | Core integrity fell below 50% 5686 | -7/Factory | Lost 7 parts (1p3n2u1w) 5813 | -7/Factory | Identified exit to Garrison 5814 | -7/Factory | Entered Garrison 5946 | -7/Garrison | Triggered checkpoint 6014 | -7/Garrison | Triggered checkpoint 6089 | -7/Garrison | Lost 5 parts (1p3n1u) 6145 | -7/Garrison | Discovered new exit (range 9) 6254 | -7/Garrison | Discovered new exit (range 19) 6318 | -7/Garrison | Triggered checkpoint 6377 | -7/Garrison | Build established: Scavenger-Mutant 6406 | -7/Garrison | Garrison Relay disabled 6442 | -7/Garrison | Triggered checkpoint 6445 | -7/Garrison | Core integrity fell below 20% 6478 | -7/Garrison | Discovered new exit (range 13) 6504 | -7/Garrison | Expanded RIF knowledge: Program Shield 6704 | -7/Garrison | Triggered checkpoint 6757 | -7/Garrison | Garrison Relay disabled 6844 | -7/Garrison | Entered Factory 6955 | -7/Factory | Identified exit to Garrison 6957 | -7/Factory | Entered Garrison 7025 | -7/Garrison | Garrison Relay disabled 7048 | -7/Garrison | Triggered checkpoint 7076 | -7/Garrison | Build established: Bothacker-Mutant 7165 | -7/Garrison | Triggered checkpoint 7172 | -7/Garrison | Triggered checkpoint 7208 | -7/Garrison | Destroyed 11 combat bots 7212 | -7/Garrison | Lost 3 parts (1p2w) 7334 | -7/Garrison | Destroyed by Y-54 Guardian with Flak Gun Last Messages --------------- 07187_ Slug penetrates S-27 Virus. 07187_ S-27 Virus destroyed. 07190_ The unstable cave ceiling collapses. 07190_ Autogun crushed. 07190_ Acquired 7 matter. 07200_ System corrupted: Component data lost. 07220_ ZITIT0IBZTPNA3/|TSOEKM2ULA/:HOC4918Q& 07272_ System corrupted: Heat flow error (+142). 07279_ The unstable cave ceiling collapses. 07290_ System corrupted: Power Maul targeting data glitched. 07323_ Slug penetrates Y-54 Guardian. 07324_ Lgt. Treads destroyed. 07325_ Slug penetrates Y-54 Guardian. 07327_ Lgt. Treads destroyed. 07327_ Slug penetrates Y-54 Guardian. 07327_ Destroyed Gatling Laser. 07329_ System corrupted: Gauss Rifle targeting data glitched. 07329_ Slug penetrates Y-54 Guardian. 07331_ System corrupted: Gauss Rifle jammed. 07333_ Slug penetrates Y-54 Guardian. Map ----- +----------------------------------------------------+ | ?????????????????????????????????????????????????? | | ?????????????????????????????????????????????????? | | ?????????????????????????????????????????????????? | | ?????????????????????????????????????????????????? | | ?????????????????????????????????????????????????? | | ?????????????????????????????????????????????????? | | ?????????????????????????????????????????????????? | | ?????????????????????????????????????????????????? | | ???????????????# ????????????????????????????????? | | ???????????????? ????????????????????????????????? | | ???????????????# ???????????????????????????????? | | ??????????????## ##""""######???????????????????? | | ???????????#### ? #???????????????????? | | ???????????? ? ???????????????????? | | ????????????? ? ???????????????????? | | ??????????????# # ?# #???????????????????? | | ????????????### ## ###?????????????????? | | ????????????# #?????????????????? | | ????????????# #?????????????????? | | ?????????????? = ###???????????????? | | ???????????????? [ ?# #???????????????? | | ??????????????# ?? #% Y### #???????????????? | | ??????????????# ##* # ## #???????????????? | | ??????????????+ ! # #???????????????? | | ??????????????# % ## #???????????????? | | ??????????????# = @[ # #???????????????? | | ??????????????# ## # * ## ###############?? | | ???????????????????# ??# #?? | | ???????????????????#????# # # ############# #?? | | ????????????????????????## ### #???????????# #?? | | ?????????????????????????# #?# #???????????# #?? | | ?????????????????????????# #?# #???????????# #?? | | ?????????????????????????# ##################### | | ?????????????????????????# ^^ | | ?????????????????????????# | | ?????????????????????????# | | ?????????????????????????##############+###### ## | | ??????????????????????????????????????# #????# #? | | ??????????????????????????????????????# #????# #? | | ???????????????????????????????########/###### #? | | ???????????????????????????????# #? | | ???????????????????????????????# = #? | | ???????????????????????????????##=! ##### #####? | | ???????????????????????????????#"" ""#??? #????? | | ???????????????????????????????#######???####????? | | ?????????????????????????????????????????????????? | | ?????????????????????????????????????????????????? | | ?????????????????????????????????????????????????? | | ?????????????????????????????????????????????????? | | ?????????????????????????????????????????????????? | +----------------------------------------------------+ Best States ------------- Heat Dissipation 61 Energy Generation 16 Energy Capacity 290 Matter Stores 300 Matter Capacity 300 Sight Range 22 Terrain Scan Range 16 Terrain Scan Density 10 Armor Coverage 300 Resistance: KI 20 Evasion (%) 50 Targeting Accuracy 6 Recoil Reduction 3 Offensive Hacking 20 Defensive Hacking 10 Item Schematics ----------------- None Robot Schematics ------------------ None Fabricated ------------ Nothing Alien Tech Used ----------------- None Achievements -------------- Overkill Challenges ------------ None Game ------ Seed MagneticDamperAirjet Manual? 0 Play Time 01:04:19 Cumulative 177.5 hours Start 2019.11.18 @ 19:48:20 End 2019.11.18 @ 21:14:08 Sessions 1 Manual Loads 0 Difficulty Rogue Special Mode None Game No. 253 Rogue 253 Adventurer 0 Explorer 0 Win Type - Total 1 Types 1/0/0/0/0/0/0 Lore% 51 Gallery% 69 Achievement% 44 Wizard Run 0 Options --------- ASCII 0 Keyboard 0 Movement Numpad Keybinds 0 Fullscreen 1 Font 16/Terminus Map View 75x55 Tactical HUD 1 Map Filters NONE Filters NONE Steam 1 RUN: 54cfda01-2e2f-49cf-8af6-9434b3709eeb